Workbook

Sheet Business & other details
V1: =INDEX(dms_Worksheet_List,MATCH(dms_Model,dms_Model_List)) -> REGULATORY REPORTING STATEMENT | CP1: DECEMBER 2020
V2: =INDEX(dms_TradingNameFull_List,MATCH(dms_TradingName,dms_TradingName_List)) -> APT Petroleum Pipelines Limited t/a Roma to Brisbane Pipeline
V4: BUSINESS & OTHER DETAILS
V6: INSTRUCTIONS
V7: Complete the following business details regulatory template before entering data or values in any other regulatory template. This regulatory template is linked to other cells within the spreadsheet and automatically generates column headings and conditional formatting to distinguish business specific input and non-input cells.
Q9: SUBMISSION PARTICULARS INPUT SHEET
V12: ENTITY DETAILS
V14: Business Name
V16: Short name | AL16: Roma to Brisbane Pipeline
V17: ACN/ABN | AL17: =INDEX(dms_ABN_List,MATCH(dms_TradingName,dms_TradingName_List)) -> 39009737393
V21: Business Address | BQ21: Postal Address
V23: Address 1 | AL23: =INDEX(dms_Addr1_List,MATCH(dms_TradingName,dms_TradingName_List)) -> Level 19, HSBC Building | BI23: Address 1 | BQ23: =INDEX(dms_PAddr1_List,MATCH(dms_TradingName,dms_TradingName_List)) -> Level 19, HSBC Building
V24: Address 2 | AL24: =IF(ISBLANK(INDEX(dms_Addr2_List,MATCH(dms_TradingName,dms_TradingName_List))),"",(INDEX(dms_Addr2_List,MATCH(dms_TradingName,dms_TradingName_List)))) -> 580 George Street | BI24: Address 2 | BQ24: =IF(ISBLANK(INDEX(dms_PAddr2_List,MATCH(dms_TradingName,dms_TradingName_List))),"",(INDEX(dms_PAddr2_List,MATCH(dms_TradingName,dms_TradingName_List)))) -> 580 George Street
V25: Suburb | AL25: =INDEX(dms_Suburb_List,MATCH(dms_TradingName,dms_TradingName_List)) -> SYDNEY | BI25: Suburb | BQ25: =INDEX(dms_PSuburb_List,MATCH(dms_TradingName,dms_TradingName_List)) -> SYDNEY
V26: State | AL26: =INDEX(dms_State_List,MATCH(dms_TradingName,dms_TradingName_List)) -> NSW | AV26: Post code | BI26: State | BQ26: =INDEX(dms_PState_List,MATCH(dms_TradingName,dms_TradingName_List)) -> NSW | CA26: Post code
BA28: `
V30: Contact Names
V32: Name | BI32: Name
V33: Phone | BI33: Phone
V34: Email | BI34: Email
Q39: REGULATORY CONTROL PERIODS
Z42: Forthcoming period | AL42: 2022-23 | AU42: =FRCP_y2 -> 2023-24 | BD42: =FRCP_y3 -> 2024-25 | BM42: =FRCP_y4 -> 2025-26 | BV42: =FRCP_y5 -> 2026-27
AL43: =FRCP_y6 -> 2027-28 | AU43: =FRCP_y7 -> 2028-29 | BD43: =FRCP_y8 -> 2029-30 | BM43: =FRCP_y9 -> 2030-31 | BV43: =FRCP_y10 -> 2031-32
AL44: =FRCP_y11 -> 2032-33 | AU44: =FRCP_y12 -> 2033-34 | BD44: =FRCP_y13 -> 2034-35 | BM44: =FRCP_y14 -> 2035-36 | BV44: =FRCP_y15 -> 2036-37
X46: RESETS | Z46: Current period | AL46: =CRCP_y1 -> 2017-18 | AU46: =CRCP_y2 -> 2018-19 | BD46: =CRCP_y3 -> 2019-20 | BM46: =CRCP_y4 -> 2020-21 | BV46: =CRCP_y5 -> 2021-22
AL47: =CRCP_y6 -> 2022-23 | AU47: =CRCP_y7 -> 2023-24 | BD47: =CRCP_y8 -> 2024-25 | BM47: =CRCP_y9 -> 2025-26 | BV47: =CRCP_y10 -> 2026-27
AL48: =CRCP_y11 -> 2027-28 | AU48: =CRCP_y12 -> 2028-29 | BD48: =CRCP_y13 -> 2029-30 | BM48: =CRCP_y14 -> 2030-31 | BV48: =CRCP_y15 -> 2031-32
Z50: Previous period | AL50: =PRCP_y1 -> 2012-13 | AU50: =PRCP_y2 -> 2013-14 | BD50: =PRCP_y3 -> 2014-15 | BM50: =PRCP_y4 -> 2015-16 | BV50: =PRCP_y5 -> 2016-17
AL51: =PRCP_y6 -> 2017-18 | AU51: =PRCP_y7 -> 2018-19 | BD51: =PRCP_y8 -> 2019-20 | BM51: =PRCP_y9 -> 2020-21 | BV51: =PRCP_y10 -> 2021-22
AL52: =PRCP_y11 -> 2022-23 | AU52: =PRCP_y12 -> 2023-24 | BD52: =PRCP_y13 -> 2024-25 | BM52: =PRCP_y14 -> 2025-26 | BV52: =PRCP_y15 -> 2026-27
Z54: Commencing year | AL54: 2020-21
X55: ANNUAL RINS
Z56: Final year | AL56: 2020-21
Q60: SUBMISSION DETAILS
Z62: RIN type | AL62: =INDIRECT(dms_Model) -> Regulatory Reporting (Reset)
Z64: Source | AL64: Regulatory proposal
X66: THIS FILE | Z66: Data Quality | AL66: Consolidated
Z68: Confidentiality Status | AL68: Public
Z70: Amended RIN Amendment Reason | AL70: .
Z74: Submission Date | AL74: dd/mm/yy | BD74: Please enter date this file submitted to AER

Sheet ECM
B1: =IF(dms_DataQuality="backcast",INDEX(dms_Worksheet_List,MATCH(dms_Model,dms_Model_List))&" BACKCAST",INDEX(dms_Worksheet_List,MATCH(dms_Model,dms_Model_List))) -> REGULATORY REPORTING STATEMENT
B2: =INDEX(dms_TradingNameFull_List,MATCH(dms_TradingName,dms_TradingName_List)) -> APT Petroleum Pipelines Limited t/a Roma to Brisbane Pipeline
B4: EFFICIENCY CARRYOVER MECHANISM
B6: Instructions
B7: Populate all yellow input cells in tables 1.1 to 1.3 presented below.
B10: Actual and estimated inflation
C11: Actual | L11: Estimate
C12: =LEFT(D12,4)-1&"-"&RIGHT(D12,2)-1 -> 2011-12 | D12: =PRCP_y1 -> 2012-13 | E12: =PRCP_y2 -> 2013-14 | F12: =PRCP_y3 -> 2014-15 | G12: =PRCP_y4 -> 2015-16 | H12: =PRCP_y5 -> 2016-17 | I12: =CRCP_y1 -> 2017-18 | J12: =CRCP_y2 -> 2018-19 | K12: =CRCP_y3 -> 2019-20 | L12: =CRCP_y4 -> 2020-21 | M12: =CRCP_y5 -> 2021-22
B13: ABS CPI index - June | C13: 100.4 | D13: 102.8 | E13: 105.9 | F13: 107.5 | G13: 108.6 | H13: 110.7 | I13: 113 | J13: 114.8 | K13: 114.4 | L13: =K13*(1 + 3.25%) -> 118.118 | M13: =L13*(1 +1.25%) -> 119.594475 | N13: To be updated
B14: Inflation rate (per cent) | D14: =D13/C13-1 -> 0.02390438247 | E14: 0.03015564202 | F14: 0.01510859301 | G14: 0.01023255814 | H14: 0.01933701657 | I14: =I13/H13-1 -> 0.02077687444 | J14: =J13/I13-1 -> 0.01592920354 | K14: =K13/J13-1 -> -0.003484320557 | L14: =L13/K13-1 -> 0.0325 | M14: =M13/L13-1 -> 0.0125
B15: =CONCATENATE("Cumulative index (",CRCP_y5,"=1)") -> Cumulative index (2021-22=1) | C15: =D15/(1+D14) -> 0.8395036644 | D15: 0.859571481 | E15: 0.8854924109 | F15: 0.8988709554 | G15: 0.9080687047 | H15: 0.9256280443 | I15: =J15/(1+J14) -> 0.9448597019 | J15: =K15/(1+K14) -> 0.9599105644 | K15: =L15/(1+L14) -> 0.9565659283 | L15: =M15/(1+M14) -> 0.987654321 | M15: 1
B18: The carryover amounts that arise from applying the Incentive Mechanism during the 2017-18 to 2021-22 regulatory control period
B20: 1.1 - Opex allowance applicable to Incentive Mechanism (Incentive Mechanism target)
D21: Previous period | F21: Current regulatory control period | M21: Previous period | O21: Current regulatory control period
D22: $m, real June 2012 | F22: $m, real June 2017 | M22: =CONCATENATE("$m, real ", dms_DollarReal) -> $m, real June 2022
D23: =PRCP_y4 -> 2015-16 | E23: =PRCP_y5 -> 2016-17 | F23: =CRCP_y1 -> 2017-18 | G23: =CRCP_y2 -> 2018-19 | H23: =CRCP_y3 -> 2019-20 | I23: =CRCP_y4 -> 2020-21 | J23: =CRCP_y5 -> 2021-22 | M23: =PRCP_y4 -> 2015-16 | N23: =PRCP_y5 -> 2016-17 | O23: =CRCP_y1 -> 2017-18 | P23: =CRCP_y2 -> 2018-19 | Q23: =CRCP_y3 -> 2019-20 | R23: =CRCP_y4 -> 2020-21 | S23: =CRCP_y5 -> 2021-22
B24: Total opex allowance | F24: 14.25665211 | G24: 14.25665211 | H24: 14.15435211 | I24: 14.10320211 | J24: 14.10320211 | M24: =+D24/$C$15 -> 0 | N24: =+E24/$C$15 -> 0 | O24: =+F24/$H$15 -> 15.40213934 | P24: =+G24/$H$15 -> 15.40213934 | Q24: 15.29161978 | R24: 15.23636001 | S24: 15.23636001
B25: Less approved excludable costs - allowance
B26: Debt raising costs (clause 8.1(h)(i)) | F26: 0.2514791477 | G26: 0.2578598387 | H26: 0.2580019491 | I26: 0.2526426301 | J26: 0.2515727709 | M26: =+D26/$C$15 -> 0 | N26: 0 | O26: =+F26/$H$15 -> 0.2716848838 | P26: =+G26/$H$15 -> 0.2785782478 | Q26: =+H26/$H$15 -> 0.2787317764 | R26: =+I26/$H$15 -> 0.2729418492 | S26: =+J26/$H$15 -> 0.2717860294
B27: Any cost category that is not forecast using a single year revealed cost approach for the 2022-27 access arrangement period (clause 8.1(h)(i)) | M27: 0 | N27: 0 | O27: 0 | P27: 0 | Q27: 0 | R27: 0 | S27: 0
M28: 0 | N28: 0 | O28: 0 | P28: 0 | Q28: 0 | R28: 0 | S28: 0
M29: 0 | N29: 0 | O29: 0 | P29: 0 | Q29: 0 | R29: 0 | S29: 0
B30: Plus approved pass through event costs (clause 8.1(i)) | M30: 0 | N30: 0 | O30: 0 | P30: 0 | Q30: 0 | R30: 0 | S30: 0
B31: Plus capitalisation policy changes (clause 8.1(k)) | H31: 0 | I31: 0 | M31: 0 | N31: 0 | O31: 0 | P31: 0 | Q31: 0 | R31: 0 | S31: 0
B32: Forecast opex for Incentive Mechanism purposes | D32: =D24-SUM(D26:D29)+SUM(D30:D31) -> 0 | E32: 0 | F32: =F24-SUM(F26:F29)+SUM(F30:F31) -> 14.00517297 | G32: =G24-SUM(G26:G29)+SUM(G30:G31) -> 13.99879227 | H32: =H24-SUM(H26:H29)+SUM(H30:H31) -> 13.89635016 | I32: =I24-SUM(I26:I29)+SUM(I30:I31) -> 13.85055948 | J32: =J24-SUM(J26:J29)+SUM(J30:J31) -> 13.85162934 | M32: =+SUM(M24:M31) -> 0 | N32: 0 | O32: =+SUM(O24:O31) -> 15.67382422 | P32: =+SUM(P24:P31) -> 15.68071759 | Q32: =+SUM(Q24:Q31) -> 15.57035156 | R32: =+SUM(R24:R31) -> 15.50930185 | S32: =+SUM(S24:S31) -> 15.50814603
B34: 1.2 - Actual and estimated opex applicable to Incentive Mechanism
D35: Previous period | F35: Current regulatory control period | M35: Previous period | O35: Current regulatory control period
D36: $m, Actual | F36: $m, Actual | M36: =CONCATENATE("$m, real ", dms_DollarReal) -> $m, real June 2022
D37: =PRCP_y4 -> 2015-16 | E37: =PRCP_y5 -> 2016-17 | F37: =CRCP_y1 -> 2017-18 | G37: =CRCP_y2 -> 2018-19 | H37: =CRCP_y3 -> 2019-20 | I37: =CRCP_y4 -> 2020-21 | J37: =CRCP_y5 -> 2021-22 | M37: =PRCP_y4 -> 2015-16 | N37: =PRCP_y5 -> 2016-17 | O37: =CRCP_y1 -> 2017-18 | P37: =CRCP_y2 -> 2018-19 | Q37: =CRCP_y3 -> 2019-20 | R37: =CRCP_y4 -> 2020-21 | S37: =CRCP_y5 -> 2021-22
B38: Total opex (actual) | F38: 14.94237573 | G38: 16.9239125 | H38: 17.70689322 | I38: =H38 -> 17.70689322 | M38: =+D38/G$15*(1+G$14)^0.5 -> 0 | N38: 0 | O38: =+F38/I$15*(1+I$14)^0.5 -> 15.97782783 | P38: =+G38/J$15*(1+J$14)^0.5 -> 17.77058489 | Q38: =+H38/K$15*(1+K$14)^0.5 -> 18.47861975 | R38: =+I38/L$15*(1+L$14)^0.5 -> 18.21723373
B39: Less approved excludable costs
B40: Debt raising costs (clause 8.1(h)(i)) | F40: 0.2481271535 | G40: 0.2510867699 | H40: 0.2565612935 | I40: =H40 -> 0.2565612935 | M40: =-D40/G$15*(1+G$14)^0.5 -> 0 | N40: 0 | O40: =-F40/I$15*(1+I$14)^0.5 -> -0.2653214596 | P40: -0.2636481818 | Q40: -0.2677431058 | R40: -0.2639557934
B41: Any cost category that is not forecast using a single year revealed cost approach for the 2022-27 access arrangement period (clause 8.1(h)(i)) | M41: 0 | N41: 0 | O41: 0 | P41: 0 | Q41: 0 | R41: 0
M42: 0 | N42: 0 | O42: 0 | P42: 0 | Q42: 0 | R42: 0
M43: 0 | N43: 0 | O43: 0 | P43: 0 | Q43: 0 | R43: 0 | U43: =CONCATENATE(dms_TradingName," to nominate base year used to forecast opex (drop down menu)") -> Roma to Brisbane Pipeline to nominate base year used to forecast opex (drop down menu)
M44: 0 | N44: 0 | O44: 0 | P44: 0 | Q44: 0 | R44: 0
M45: 0 | N45: 0 | O45: 0 | P45: 0 | Q45: 0 | R45: 0
B46: Less movements in provisions | M46: 0 | N46: 0 | O46: 0 | P46: 0 | Q46: 0 | R46: 0
B47: Actual opex for Incentive Mechanism purposes | D47: =+D38-SUM(D40:D46) -> 0 | E47: 0 | F47: 14.69424857 | G47: 16.67282573 | H47: 17.45033193 | I47: 17.45033193 | M47: =M38+SUM(M40:M46) -> 0 | N47: 0 | O47: =O38+SUM(O40:O46) -> 15.71250637 | P47: =P38+SUM(P40:P46) -> 17.50693671 | Q47: 18.21087665 | R47: 17.95327793 | S47: =S32-(LOOKUP($T$47,O23:R23,O32:R32)-LOOKUP($T$47,O37:R37,O47:R47)) -> 18.14867112 | T47: 2019-20
O49: =CONCATENATE("Incremental gain ($m, ",CRCP_y5,")") -> Incremental gain ($m, 2021-22)
O50: =CONCATENATE("$m, real ", dms_DollarReal) -> $m, real June 2022
O51: =CRCP_y1 -> 2017-18 | P51: =CRCP_y2 -> 2018-19 | Q51: =CRCP_y3 -> 2019-20 | R51: =CRCP_y4 -> 2020-21 | S51: =CRCP_y5 -> 2021-22
O52: =(O32-O47)-(N32-N47)+(M32-M47) -> -0.0386821458 | P52: =(P32-P47)-(O32-O47) -> -1.787536976 | Q52: =(Q32-Q47)-(P32-P47) -> -0.8143059645 | R52: =(R32-R47)-(Q32-Q47) -> 0.1965490059 | S52: =(S32-S47)-(R32-R47) -> -0.1965490059
O54: Efficiency carryovers
O55: =CONCATENATE("$m, real ", dms_DollarReal) -> $m, real June 2022 | Y55: Total
O56: =CRCP_y1 -> 2017-18 | P56: =CRCP_y2 -> 2018-19 | Q56: =CRCP_y3 -> 2019-20 | R56: =CRCP_y4 -> 2020-21 | S56: =CRCP_y5 -> 2021-22 | T56: =FRCP_y1 -> 2022-23 | U56: =FRCP_y2 -> 2023-24 | V56: =FRCP_y3 -> 2024-25 | W56: =FRCP_y4 -> 2025-26 | X56: =FRCP_y5 -> 2026-27
N57: =CRCP_y1 -> 2017-18 | P57: =$O$52 -> -0.0386821458 | Q57: =$O$52 -> -0.0386821458 | R57: =$O$52 -> -0.0386821458 | S57: =$O$52 -> -0.0386821458 | T57: =$O$52 -> -0.0386821458
N58: =CRCP_y2 -> 2018-19 | Q58: =$P$52 -> -1.787536976 | R58: =$P$52 -> -1.787536976 | S58: =$P$52 -> -1.787536976 | T58: =$P$52 -> -1.787536976 | U58: =$P$52 -> -1.787536976
N59: =CRCP_y3 -> 2019-20 | R59: =$Q$52 -> -0.8143059645 | S59: =$Q$52 -> -0.8143059645 | T59: =$Q$52 -> -0.8143059645 | U59: =$Q$52 -> -0.8143059645 | V59: =$Q$52 -> -0.8143059645
N60: =CRCP_y4 -> 2020-21 | S60: =$R$52 -> 0.1965490059 | T60: =$R$52 -> 0.1965490059 | U60: =$R$52 -> 0.1965490059 | V60: =$R$52 -> 0.1965490059 | W60: =$R$52 -> 0.1965490059
N61: =CRCP_y5 -> 2021-22 | T61: =+$S$52 -> -0.1965490059 | U61: =+$S$52 -> -0.1965490059 | V61: =+$S$52 -> -0.1965490059 | W61: =+$S$52 -> -0.1965490059 | X61: =+$S$52 -> -0.1965490059
N62: =CONCATENATE("Total Carryover Amount ($million, ", CRCP_y5,")") -> Total Carryover Amount ($million, 2021-22) | T62: =+SUM(T57:T61) -> -2.640525086 | U62: =+SUM(U57:U61) -> -2.60184294 | V62: =+SUM(V57:V61) -> -0.8143059645 | W62: =+SUM(W57:W61) -> -1.776356839e-15 | X62: =+SUM(X57:X61) -> -0.1965490059 | Y62: =+SUM(T62:X62) -> -6.253222996
N64: PTRM inputs | T64: =T62 -> -2.640525086 | U64: =U62 -> -2.60184294 | V64: =V62 -> -0.8143059645 | W64: =W62 -> -1.776356839e-15 | X64: =X62 -> -0.1965490059 | Y64: =+SUM(T64:X64) -> -6.253222996
B66: 1.3 - Proposed forecast opex for the Incentive Mechanism for the forthcoming regulatory control period
C67: Forthcoming regulatory control period
C68: =CONCATENATE("$m, real ", dms_DollarReal) -> $m, real June 2022
C69: =FRCP_y1 -> 2022-23 | D69: =FRCP_y2 -> 2023-24 | E69: =FRCP_y3 -> 2024-25 | F69: =FRCP_y4 -> 2025-26 | G69: =FRCP_y5 -> 2026-27 | H69: Total
B70: Forecast opex | C70: 19.05474468 | D70: 19.09906066 | E70: 19.1591991 | F70: 19.25943425 | G70: 19.39488714 | H70: =+SUM(C70:G70) -> 95.96732582
B71: Less excluded costs
B72: Debt Raising costs | C72: 0.2375567925 | D72: 0.2406568562 | E72: 0.2369515106 | F72: 0.2334812754 | G72: 0.2303115921 | H72: =+SUM(C72:G72) -> 1.178958027
B73: Uncontrollable costs | C73: 1.300967686 | D73: 1.300967686 | E73: 1.300967686 | F73: 1.300967686 | G73: 1.300967686 | H73: 6.504838429
B74: <category proposed for exclusion> | H74: 0
B75: <category proposed for exclusion> | H75: 0
B76: <category proposed for exclusion> | H76: 0
B77: <category proposed for exclusion> | H77: 0
B78: <category proposed for exclusion> | H78: 0
B79: <category proposed for exclusion> | H79: 0
B80: <category proposed for exclusion> | H80: 0
B81: <category proposed for exclusion> | H81: 0
B82: =CONCATENATE("Adjusted forecast opex ($million, ",CRCP_y5,")") -> Adjusted forecast opex ($million, 2021-22) | C82: =+C70-SUM(C72:C81) -> 17.5162202 | D82: =+D70-SUM(D72:D81) -> 17.55743612 | E82: =+E70-SUM(E72:E81) -> 17.6212799 | F82: =+F70-SUM(F72:F81) -> 17.72498528 | G82: =+G70-SUM(G72:G81) -> 17.86360786 | H82: =+H70-SUM(H72:H81) -> 88.28352936

Sheet AER CF (hidden)
B1: AER CONDITIONAL FORMATTING
B4: CONDITIONAL FORMATTING MAP
F5: =INDEX(dms_CF_3.6.1, MATCH(dms_TradingName,dms_CF_TradingName))="Y" | G5: =INDEX(dms_CF_3.6.5, MATCH(dms_TradingName,dms_CF_TradingName))="Y" | H5: =INDEX(dms_CF_3.6.6, MATCH(dms_TradingName,dms_CF_TradingName))="Y" | I5: =INDEX(dms_CF_3.6.7.1, MATCH(dms_TradingName,dms_CF_TradingName))="Y" | J5: =INDEX(dms_CF_3.6.7.2, MATCH(dms_TradingName,dms_CF_TradingName))="Y" | K5: =INDEX(dms_CF_3.6.7.3, MATCH(dms_TradingName,dms_CF_TradingName))="Y" | L5: =INDEX(dms_CF_3.6.7.4, MATCH(dms_TradingName,dms_CF_TradingName))="Y" | M5: =INDEX(dms_CF_3.6.8, MATCH(dms_TradingName,dms_CF_TradingName))="Y" | N5: =INDEX(dms_CF_4.1, MATCH(dms_TradingName,dms_CF_TradingName))="Y" | O5: =INDEX(dms_CF_6.6.1, MATCH(dms_TradingName,dms_CF_TradingName))="Y" | P5: =INDEX(dms_CF_6.8, MATCH(dms_TradingName,dms_CF_TradingName))="Y" | Q5: =INDEX(dms_CF_7.12, MATCH(dms_TradingName,dms_CF_TradingName))="Y" | R5: =INDEX(dms_CF_8.1_A, MATCH(dms_TradingName,dms_CF_TradingName))="Y" | S5: =INDEX(dms_CF_8.1_B, MATCH(dms_TradingName,dms_CF_TradingName))="Y" | T5: =INDEX(dms_CF_8.1_Neg, MATCH(dms_TradingName,dms_CF_TradingName))="Y" | U5: =INDEX(dms_CF_4.4.1_Neg, MATCH(dms_TradingName,dms_CF_TradingName))="Y"
B6: dms_CF_TradingName | C6: JurisdictionList | D6: Sector | E6: Segment | F6: dms_CF_3.6.1 | G6: dms_CF_3.6.5 | H6: dms_CF_3.6.6 | I6: dms_CF_3.6.7.1 | J6: dms_CF_3.6.7.2 | K6: dms_CF_3.6.7.3 | L6: dms_CF_3.6.7.4 | M6: dms_CF_3.6.8 | N6: dms_CF_4.1 | O6: dms_CF_6.6.1 | P6: dms_CF_6.8 | Q6: dms_CF_7.12 | R6: dms_CF_8.1_A | S6: dms_CF_8.1_B | T6: dms_CF_8.1_Neg | U6: dms_CF_4.4.1 | V6: dms_CF_MAIFI_flag | W6: Spare1 | X6: Spare2
B7: ActewAGL Distribution | C7: ACT | D7: Electricity | E7: Distribution | G7: Y | I7: Y | J7: Y | K7: N | L7: Y | M7: N | N7: N | O7: N | P7: Y | Q7: Y | R7: N | S7: Y | T7: Y | U7: N | V7: N | W7: N | X7: N
B8: Ausgrid | C8: NSW | D8: Electricity | E8: Distribution | G8: Y | I8: N | J8: N | K8: N | L8: Y | M8: N | N8: N | O8: N | P8: Y | Q8: Y | R8: N | S8: Y | T8: Y | U8: N | V8: N | W8: N | X8: N
B9: AusNet (D) | C9: Vic | D9: Electricity | E9: Distribution | G9: N | I9: N | J9: N | K9: N | L9: N | M9: N | N9: Y | O9: N | P9: Y | Q9: N | R9: N | S9: N | T9: Y | U9: N | V9: N | W9: N | X9: N
B10: AusNet (T) | C10: Vic | D10: Electricity | E10: Transmission | G10: N | I10: N | J10: N | K10: N | L10: N | M10: N | N10: Y | O10: N | P10: Y | Q10: N | R10: N | S10: N | T10: Y | U10: N | V10: N | W10: N | X10: N
B11: CitiPower | C11: Vic | D11: Electricity | E11: Distribution | G11: N | I11: N | J11: N | K11: N | L11: N | M11: N | N11: Y | O11: N | P11: Y | Q11: N | R11: N | S11: N | T11: Y | U11: N | V11: N | W11: N | X11: N
B12: Directlink | C12: Qld | D12: Electricity | E12: Transmission | G12: N | I12: N | J12: N | K12: N | L12: N | M12: N | N12: Y | O12: N | P12: Y | Q12: N | R12: N | S12: Y | T12: Y | U12: N | V12: N | W12: N | X12: N
B13: ElectraNet | C13: SA | D13: Electricity | E13: Transmission | G13: N | I13: N | J13: N | K13: N | L13: N | M13: N | N13: Y | O13: N | P13: Y | Q13: N | R13: N | S13: Y | T13: Y | U13: N | V13: N | W13: N | X13: N
B14: Endeavour Energy | C14: NSW | D14: Electricity | E14: Distribution | G14: Y | I14: N | J14: N | K14: N | L14: Y | M14: N | N14: N | O14: N | P14: Y | Q14: Y | R14: N | S14: Y | T14: Y | U14: Y | V14: N | W14: N | X14: N
B15: Energex | C15: Qld | D15: Electricity | E15: Distribution | G15: Y | I15: N | J15: N | K15: N | L15: N | M15: N | N15: N | O15: N | P15: Y | Q15: Y | R15: N | S15: Y | T15: Y | U15: Y | V15: N | W15: N | X15: N
B16: Ergon Energy | C16: Qld | D16: Electricity | E16: Distribution | G16: Y | I16: N | J16: N | K16: N | L16: N | M16: N | N16: N | O16: N | P16: Y | Q16: Y | R16: N | S16: Y | T16: Y | U16: N | V16: N | W16: N | X16: N
B17: Essential Energy | C17: NSW | D17: Electricity | E17: Distribution | G17: Y | I17: N | J17: N | K17: N | L17: Y | M17: N | N17: N | O17: N | P17: Y | Q17: Y | R17: N | S17: Y | T17: Y | U17: N | V17: N | W17: N | X17: N
B18: Jemena Electricity | C18: Vic | D18: Electricity | E18: Distribution | G18: N | I18: N | J18: N | K18: N | L18: N | M18: N | N18: Y | O18: N | P18: Y | Q18: N | R18: N | S18: N | T18: Y | U18: N | V18: N | W18: N | X18: N
B19: Murraylink | C19: SA | D19: Electricity | E19: Transmission | G19: N | I19: N | J19: N | K19: N | L19: N | M19: N | N19: Y | O19: N | P19: Y | Q19: N | R19: N | S19: Y | T19: Y | U19: N | V19: N | W19: N | X19: N
B20: Power and Water | C20: NT | D20: Electricity | E20: Distribution | G20: N | I20: N | J20: Y | K20: N | L20: N | M20: Y | N20: Y | O20: Y | P20: Y | Q20: Y | R20: N | S20: Y | T20: Y | U20: N | V20: N | W20: N | X20: N
B21: Powercor Australia | C21: Vic | D21: Electricity | E21: Distribution | G21: N | I21: N | J21: N | K21: N | L21: N | M21: N | N21: Y | O21: N | P21: Y | Q21: N | R21: N | S21: N | T21: Y | U21: N | V21: N | W21: N | X21: N
B22: Powerlink | C22: Qld | D22: Electricity | E22: Transmission | G22: N | I22: N | J22: N | K22: N | L22: N | M22: N | N22: Y | O22: N | P22: Y | Q22: N | R22: N | S22: Y | T22: Y | U22: N | V22: N | W22: N | X22: N
B23: SA Power Networks | C23: SA | D23: Electricity | E23: Distribution | G23: Y | I23: N | J23: N | K23: N | L23: N | M23: N | N23: Y | O23: N | P23: Y | Q23: Y | R23: Y | S23: Y | T23: N | U23: N | V23: N | W23: N | X23: N
B24: TasNetworks (D) | C24: Tas | D24: Electricity | E24: Distribution | G24: Y | I24: N | J24: N | K24: N | L24: N | M24: N | N24: N | O24: N | P24: Y | Q24: Y | R24: N | S24: Y | T24: Y | U24: N | V24: N | W24: N | X24: N
B25: TasNetworks (T) | C25: Tas | D25: Electricity | E25: Transmission | G25: N | I25: N | J25: N | K25: N | L25: N | M25: N | N25: Y | O25: N | P25: Y | Q25: N | R25: N | S25: Y | T25: Y | U25: N | V25: N | W25: N | X25: N
B26: TransGrid | C26: NSW | D26: Electricity | E26: Transmission | G26: N | I26: N | J26: N | K26: N | L26: N | M26: N | N26: Y | O26: N | P26: Y | Q26: N | R26: N | S26: Y | T26: Y | U26: N | V26: N | W26: N | X26: N
B27: United Energy | C27: Vic | D27: Electricity | E27: Distribution | G27: N | I27: N | J27: N | K27: N | L27: N | M27: N | N27: Y | O27: N | P27: Y | Q27: N | R27: N | S27: N | T27: Y | U27: N | V27: N | W27: N | X27: N
B30: Confidential
B31: Amended
B33: Worksheet 6.2 STPIS reliability
B34: Formula | F34: Applied to:
B36: =INDEX(dms_CBD_flag,MATCH(dms_TradingName,dms_TradingName_List))="NO" | F36: $D$11,$D$17,$D$23,$D$33,$D$39,$D$45,$D$55,$D$61,$D$67,$D$77,$D$83,$D$89
B37: =INDEX(dms_Urban_flag,MATCH(dms_TradingName,dms_TradingName_List))="NO" | F37: $D$12,$D$18,$D$24,$D$56,$D$62,$D$78,$D$68,$D$84
B38: =INDEX(dms_ShortRural_flag,MATCH(dms_TradingName,dms_TradingName_List))="NO" | F38: $D$13,$D$19,$D$25,$D$57,$D$63,$D$69,$D$79,$D$85
B39: =INDEX(dms_LongRural_flag,MATCH(dms_TradingName,dms_TradingName_List))="NO" | F39: $D$14,$D$20,$D$26,$D$58,$D$64,$D$65,$D$70,$D$71,$D$80,$D$86
B40: =INDEX(dms_FeederType_5_flag,MATCH(dms_TradingName,dms_TradingName_List))="NO" | F40: $D$87,$D$81,$D$71,$D$65,$D$59,$D$49,$D$43,$D$37,$D$21,$D$15
B41: =dms_MAIFI_Flag="No" | F41: $D$55:$D$72
B44: Business & other details
B45: =(INDEX(dms_Model_Span,MATCH(dms_Model,dms_Model_List))>1)
B46: =(INDEX(dms_Model_Span,MATCH(dms_Model,dms_Model_List))=1)
B49: STYLES IN USE
C50: dms_1
C51: dms_2
C52: dms_3
C53: dms_4
C54: dms_5
C55: dms_NUM
C56: dms_NUM%
C57: dms_Row_Locked
C58: dms_Row1
C59: dms_Row2
C60: dms_T1
C61: dms_T2
C62: dms_BH
C63: dms_BY1
C64: dms_BY2
C65: dms_GH
C66: dms_GY1
C67: dms_GY2

Sheet AER NRs (hidden)
B1: AER NAMED RANGES
B3: DROP DOWN SELECTORS USED IN WORKBOOKS
B5: COVER SHEET | C5: dms_DataQuality_List | D5: dms_Confid_status_List
C6: -- select -- | D6: -- select --
C7: Actual | D7: Public
C8: Estimate | D8: Confidential
C9: Consolidated
C12: For all files either AER or business needs to be able to specify the type of submission | D12: For PTRM & RFM templates we must provide a choice in case they change their form of control - otherwise it is drawn from the business specific lookup table above.
C13: dms_SourceList | D13: dms_FormControl_Choices
C14: -- select -- | D14: Revenue cap
C15: After appeal | D15: Revenue yield
C16: Draft decision | D16: Weighted average price cap
C17: Final decision
C18: PTRM update 1
C19: PTRM update 2
C20: PTRM update 3
C21: PTRM update 4
C22: PTRM update 5
C23: PTRM update 6
C24: PTRM update 7
C25: Regulatory proposal
C26: Reporting
C27: Revised regulatory proposal
K30: This is used to create an image to insert on 6.3 STPIS sheet - not for dropdown lists. | N30: GAS
B31: CA & RESET RINS DNSP | C31: dms_DNSP_020301_SubstationType | D31: dms_DNSP_020301_ProjectType | E31: dms_DNSP_020301_ProjectTrigger | F31: dms_DNSP_020302_ProjectType | G31: dms_DNSP_020302_ProjectTrigger | H31: dms_STPIS_Exclusion_List | I31: dms_Reason_Interruption | J31: dms_Reason_Interruption_Detailed | K31: Reason for interruption | N31: dms_N0205_AssetType
C32: Subtransmission substation | D32: New substation establishment | E32: Demand growth | F32: New line on new route - single circuit | G32: Demand growth | H32: Weather | I32: Animal | J32: Animal impact | K32: Animal | L32: Animal impact | N32: Cast Iron
C33: Zone substation | D33: Substation upgrade - capacity | E33: Voltage issues | F33: New line on new route - dual circuit | G33: Voltage issues | H33: Equipment failure | I33: Asset failure | J33: Animal nesting/burrowing, etc and other | L33: Animal nesting/burrowing, etc and other | N33: PVC
C34: Switching station | D34: Substation upgrade - voltage | E34: Reactive power issue | F34: New line on new route - other | G34: Reactive power issue | H34: Operational error | I34: Other | J34: Other | L34: Other | N34: Polyamide
C35: Other | D35: Other | E35: Fault level issues | F35: Line rebuild over existing route - single circuit | G35: Fault level issues | H35: Vegetation | I35: Overloads | J35: LV | K35: Asset failure | L35: LV | N35: High density polyethylene (80)
E36: Safety | F36: Line rebuild over existing route - dual circuit | G36: Net market benefit | H36: Animals | I36: Planned | J36: Distribution substation | L36: Distribution substation | N36: High density polyethylene (100)
E37: Environment | F37: Reconductor - Single circuit | G37: Safety | H37: Third party impacts | I37: Network business | J37: HV | L37: HV | N37: High density polyethylene (250)
E38: Other | F38: Reconductor - Dual circuit | G38: Environment | H38: Transmission failure | I38: Third party | J38: Zone substation | L38: Zone substation | N38: High density polyethylene (575)
F39: Reconductor - Other | G39: Other | H39: Load shedding | I39: Unknown | J39: Subtransmission | L39: Subtransmission | N39: Medium density polyethylene
F40: Line upgrade - raising/retensoring | H40: Inter-distributor connection failure | I40: Vegetation | J40: insert description of 'other' | K40: Other | L40: insert description of 'other' | N40: Unprotected steel
F41: Line upgrade - voltage upgrade | H41: Other | I41: Weather | J41: Network error | K41: Overloads | N41: Protected steel
F42: Line upgrade - capacity | I42: 2 - STPIS Exclusion (3.3)(a) | J42: Switching and protection error | K42: Planned | N42: Other
F43: String spare circuit | I43: 3 - STPIS Exclusion (3.3)(a) | J43: Fire | K43: Network business | L43: Network error
F44: Other | I44: 4 - STPIS Exclusion (3.3)(a) | J44: Other | L44: Switching and protection error
I45: 5 - STPIS Exclusion (3.3)(a) | J45: Dig-in | K45: Third party | L45: Fire
I46: 6 - STPIS Exclusion (3.3)(a) | J46: Unauthorised access | L46: Other
I47: 7 - STPIS Exclusion (3.3)(a) | J47: Vehicle impact | L47: Dig-in
J48: Unknown | L48: Unauthorised access
J49: Blow-in/Fall-in - NSP responsibility | L49: Vehicle impact
J50: Grow-in - NSP responsibility | K50: Unknown | L50: Unknown
J51: Blow-in/Fall-in - Other responsible party | K51: Vegetation | L51: Blow-in/Fall-in - NSP responsibility
J52: Grow-in - Other responsible party | L52: Grow-in - NSP responsibility
L53: Blow-in/Fall-in - Other responsible party
L54: Grow-in - Other responsible party
K55: Weather
K56: 2 - STPIS Exclusion (3.3)(a)
K57: 3 - STPIS Exclusion (3.3)(a)
K58: 4 - STPIS Exclusion (3.3)(a)
K59: 5 - STPIS Exclusion (3.3)(a)
K60: 6 - STPIS Exclusion (3.3)(a)
K61: 7 - STPIS Exclusion (3.3)(a)
B64: CA & RESET RINS TNSP | C64: dms_TNSP_0203_SubstationType | D64: dms_TNSP_020301_ProjectType | E64: dms_TNSP_020301_ProjectTrigger | F64: dms_TNSP_020302_ProjectType | G64: dms_TNSP_0203_ProjectTrigger
C65: Terminal station | D65: New substation establishment | E65: Demand growth | F65: New line on new route - single circuit | G65: Demand growth
C66: Switching station | D66: Capacity upgrade | E66: Voltage issues | F66: New line on new route - dual circuit | G66: Voltage issues
C67: Transmission substation | D67: Voltage upgrade | E67: Reactive power issue | F67: New line on new route - other | G67: Reactive power issue
C68: Other | D68: Other | E68: Fault level issues | F68: Line rebuild over existing route - single circuit | G68: Fault level issues
E69: Net market benefit | F69: Line rebuild over existing route - dual circuit | G69: Net market benefit
E70: Safety | F70: Reconductor - Single circuit | G70: Safety
E71: Environment | F71: Reconductor - Dual circuit | G71: Environment
E72: Other | F72: Reconductor - Other | G72: Other
F73: Line upgrade - raising/retensoring
F74: Line upgrade - voltage upgrade
F75: Line upgrade - capacity
F76: String spare circuit
F77: Other
B81: NAMED RANGES USED IN ETL PROCESS
B83: CA & RESET RINS DNSP ONLY | C83: dms_020303_01_UOM | D83: dms_020501_01_UOM | E83: dms_020501_02_UOM | F83: dms_020501_03_UOM | G83: dms_020501_04_UOM | H83: dms_020701_01_UOM | I83: dms_020701_02_UOM | J83: dms_020701_01_Rows | K83: dms_040102_01_UOM | L83: dms_040102_04_UOM | M83: dms_S140101_UOM | N83: dms_S140102_UOM | O83: dms_S140201_UOM
C84: Circuit line length in km | D84: 0's | E84: 0's | F84: 0's | G84: 0's | H84: km | I84: km | J84: Route line length within zone | K84: 0's | L84: days | M84: number | N84: number | O84: number per km
C85: Circuit line length in km | D85: 0's | E85: 0's | F85: 0's | G85: 0's | H85: 0's | I85: 0's | J85: Number of maintenance spans | K85: 0's | L85: 0's | M85: number | N85: number | O85: number
C86: Circuit line length in km | D86: MVA added | E86: MVA added | F86: MVA added | G86: MVA added | H86: km | I86: km | J86: Total length of maintenance spans | K86: 0's | L86: $0s | M86: number | N86: number | O86: number
C87: Circuit line length in km | D87: 0's | E87: 0's | F87: 0's | G87: 0's | H87: km | I87: km | J87: Length of vegetation corridors | K87: $0s | L87: 0's | M87: km | N87: number
C88: Number | D88: total spend $0s | E88: total spend $0s | F88: total spend $0s | G88: total spend $0s | H88: 0's | I88: 0's | J88: Average number of trees per maintenance span
C89: Number | D89: net circuit km added | E89: net circuit km added | F89: net circuit km added | G89: net circuit km added | H89: years | I89: years | J89: Average frequency of cutting cycle
C90: Number | D90: total spend $0s | E90: total spend $0s | F90: total spend $0s | G90: total spend $0s
D91: net circuit km added | E91: net circuit km added | F91: net circuit km added | G91: net circuit km added
D92: total spend $0s | E92: total spend $0s | F92: total spend $0s | G92: total spend $0s
D93: 0's | F93: $0s
D94: 0's
D95: 0's
D96: $0s
B99: CA & RESET RINS TNSP ONLY | C99: dms_020701_01_UOM
C100: km
C101: 0's
C102: km
C103: 0's
C104: km
C105: metres
C106: years
B109: CA & RESET RINS DNSP & TNSP | C109: dms_020603_01_UOM
C110: 0's
C111: 0's
C112: 0's
C113: 0's
C114: (per cent)
B117: EB & RESET RINS DNSP ONLY | C117: dms_030601_01_UOM | D117: dms_030601_02_UOM | E117: dms_030701_01_UOM | F117: dms_030702_01_UOM | G117: dms_030703_01_UOM
C118: minutes/customer | D118: minutes/customer | E118: Customer / km | F118: % | G118: km
C119: minutes/customer | D119: minutes/customer | E119: MWh/customer | F119: Number of spans
C120: interruptions/customer | D120: interruptions/customer | E120: kVA / customer | F120: Number of spans
C121: interruptions/customer | D121: interruptions/customer | F121: Number of spans
F122: Number of spans
F123: Years
F124: Years
F125: Trees
F126: Trees
F127: Defects
F128: Defects
F129: Spans
F130: km
F131: Spans
C133: WHEN INSERTING COVER SHEET INTO A TNSP FILE - APPLY THESE NAMED RANGES
B134: EB & RESET RINS TNSP ONLY | C134: dms_030601_01_UOM | E134: dms_030701_01_UOM | F134: dms_030702_01_UOM
C135: % | E135: Number of spans | F135: km
C136: number | E136: Years | F136: %
C137: number | E137: Trees | F137: km
C138: % | E138: Defects | F138: number
C139: number | E139: Number of spans
C140: number | E140: km
C141: % | E141: km
C142: number | E142: Number of spans
C143: number
C144: %
C145: number
C146: %
C147: number
C148: %
C149: number
B151: EB & RESET RINS DNSP & TNSP | C151: dms_EB_RAB_PIT
C152: Beginning of year
C153: End of year
C154: End of year
C155: End of year
C156: End of year
C157: End of year
B159: ARR DNSP ONLY | C159: dms_030605_UOM | D159: dms_03060703_UOM | E159: Spare | F159: Spare
C160: number | D160: number
C161: number | D161: number
C162: number | D162: number
C163: number | D163: number
C164: number | D164: (per cent)
C165: number
C166: number
C167: number
C168: number
C169: number
C170: number
C171: number
C172: (per cent)
C173: (per cent)
B175: RFM | C175: dms_Beg | D175: dms_Mid | E175: dms_End
C176: Beginning of year | D176: Mid year | E176: End of Year
B178: PTRM | C178: dms_PTRM_RAB_PIT | D178: dms_PTRM_TAB_PIT | E178: DMS_Xfactor
C179: Beginning of year | D179: Beginning of year | E179: x factors
C180: End of year | D180: End of year
C181: End of year | D181: End of year
C182: End of year | D182: End of year
C183: End of year
B186: STPIS & MIC NAMED RANGES
B188: These "row descriptions" are the column headings in the various templates but become row descriptions in the ETL process
B190: Table 6.3 sustained interruptions - row descriptions | C190: dms_060301_CustNo_Affected_Row | D190: dms_060301_Avg_Duration_Sustained_Int_Row | E190: dms_060301_Effect_unplanned_SAIDI_Row | F190: dms_060301_Effect_unplanned_SAIFI_Row
C191: Number of customers affected by the interruption | D191: Average duration of sustained customer interruption | E191: Effect on unplanned SAIDI | F191: Effect on unplanned SAIFI
B194: Table 6.1 telephone answering - row descriptions and start date | C194: dms_060101_Rows | D194: dms_060102_Rows | E194: dms_060101_StartDateTxt
C195: Total number of calls (after removing excluded events) | D195: Number of calls answered within 30 seconds (after excluding excluded events) | E195: =dms_060701_StartDateTxt -> 1-Jul-2015
B198: Table 6.8.1 - row descriptions | C198: dms_060801_01_Rows | D198: dms_060801_02_Rows | E198: dms_060801_03_Rows | F198: dms_060801_04_Rows
C199: Number of interruptions | D199: Duration of interruptions | E199: Total unplanned minutes off supply | F199: Effect on unplanned MAIFI
B202: Table 7.9.4 - market impact component - row descriptions | C202: dms_070904_01_Rows | D202: without exclusions | E202: with exclusions
B205: These headings (Lists) are determined from the INDEX/MATCH function on the NSP selected on the Business & other details sheet
B207: Table 6.7.1 - daily performance data - unplanned - MAIFI -- row descriptions and header named range values | C207: dms_060701_Feeder_Header_Lvl4 | D207: =INDEX(dms_FeederName_1,MATCH(dms_TradingName,dms_TradingName_List)) -> Urban | E207: =INDEX(dms_FeederName_1,MATCH(dms_TradingName,dms_TradingName_List)) -> Urban | F207: =INDEX(dms_FeederName_2,MATCH(dms_TradingName,dms_TradingName_List)) -> Short rural | G207: =INDEX(dms_FeederName_2,MATCH(dms_TradingName,dms_TradingName_List)) -> Short rural | H207: =INDEX(dms_FeederName_3,MATCH(dms_TradingName,dms_TradingName_List)) -> Long rural | I207: =INDEX(dms_FeederName_3,MATCH(dms_TradingName,dms_TradingName_List)) -> Long rural | J207: =INDEX(dms_FeederName_4,MATCH(dms_TradingName,dms_TradingName_List)) -> 0 | K207: =INDEX(dms_FeederName_4,MATCH(dms_TradingName,dms_TradingName_List)) -> 0 | L207: =IF((INDEX(dms_FeederName_5,MATCH(dms_TradingName,dms_TradingName_List))=0),"Network",(INDEX(dms_FeederName_5,MATCH(dms_TradingName,dms_TradingName_List)))) -> NO | M207: =IF((INDEX(dms_FeederName_5,MATCH(dms_TradingName,dms_TradingName_List))=0),"Network",(INDEX(dms_FeederName_5,MATCH(dms_TradingName,dms_TradingName_List)))) -> NO | N207: Network | O207: Network
C209: dms_060701_Rows | D209: All events | E209: After removing excluded events | F209: All events | G209: After removing excluded events | H209: All events | I209: After removing excluded events | J209: All events | K209: After removing excluded events | L209: All events | M209: After removing excluded events | N209: All events | O209: After removing excluded events
D210: the number of column headings changes from 10 to 12 depending on the number of feeder categories for the NSP
C212: dms_0603_FeederList | D212: =INDEX(dms_FeederName_1,MATCH(dms_TradingName,dms_TradingName_List)) -> Urban | E212: =INDEX(dms_FeederName_2,MATCH(dms_TradingName,dms_TradingName_List)) -> Short rural | F212: =INDEX(dms_FeederName_3,MATCH(dms_TradingName,dms_TradingName_List)) -> Long rural | G212: =INDEX(dms_FeederName_4,MATCH(dms_TradingName,dms_TradingName_List)) -> 0
B215: Use these to add to specific worksheets in existing files | C215: Use these to add to specific worksheets in existing files
B218: ARRs 6.7 STPIS daily performance | C218: dms_060101_Values | D218: dms_060102_Values | E218: dms_060701_Values
C219: dms_LeapYear
B222: ARR's 6.8 STPIS exclusions | C222: dms_060801_Event_Date | D222: dms_060801_OutageID | E222: dms_060801_FeederID | F222: dms_060801_FeederClass | G222: dms_060801_CauseID | H222: dms_060801_01_Values | I222: dms_060801_02_Values | J222: dms_060801_03_Values | K222: dms_060801_Excl_Cat | L222: dms_060801_04_Values
C223: dms_060801_StartCell
B226: CA 6.3 sustained interruptions | C226: dms_060301_Event_Date | D226: dms_060301_Event_Time | E226: dms_060301_AssetID | F226: dms_060301_FeederClass | G226: dms_060301_Reason | H226: dms_060301_DetailedReason | I226: dms_060301_CustNo_Affected_Values | J226: dms_060301_Avg_Duration_Sustained_Int_Values | K226: dms_060301_Effect_unplanned_SAIDI_Values | L226: dms_060301_Effect_unplanned_SAIFI_Values | M226: dms_060301_MED

Sheet AER lookups (hidden)
B1: AER LOOKUP TABLES
B3: Data in these columns used for data validation and database purposes.
B4: Date last modified: | C4: 2017-01-16 | D4: added (Albury and Victora) for AGN
C5: 2016-10-17 | D5: updated TransGrid's correct legal name, corrected TasNetworks (T) to June financial year
C6: 2017-02-01 | D6: inserted Power and Water, added NRs (dms_FeederCat_1 and dms_FeederCat_2)
C7: 2017-03-03 | D7: inserted AEMO as a business | Z7: FOR ELECTRICITY BUSINESSES ONLY
C8: 2018-03-28 | D8: major changes to accommodate STPIS
C9: Template Version | D9: 5 | Z9: Feeder Types | AD9: TasNetworks (D) | AE9: MAIFI flag | AF9: Feeder Names
Z11: CBD | AA11: Urban | AB11: Short rural | AC11: long rural | AD11: EXTRA
B12: dms_TradingName_List | C12: dms_TradingNameFull_List | D12: dms_ABN_List | E12: dms_JurisdictionList | F12: dms_Sector_List | G12: dms_Segment_List | H12: dms_FormControl_List | I12: dms_RPT_List | J12: dms_RPTMonth_List | K12: dms_CRCPlength_List | L12: dms_FRCPlength_List | M12: dms_PRCPlength_List | N12: dms_663_List | O12: dms_DeterminationRef_List | P12: dms_Addr1_List | Q12: dms_Addr2_List | R12: dms_Suburb_List | S12: dms_State_List | T12: dms_PostCode_List | U12: dms_PAddr1_List | V12: dms_PAddr2_List | W12: dms_PSuburb_List | X12: dms_PState_List | Y12: dms_PPostCode_List | Z12: dms_CBD_flag | AA12: dms_Urban_flag | AB12: dms_ShortRural_flag | AC12: dms_LongRural_flag | AD12: dms_FeederType_5_flag | AE12: dms_MAIFI_flag_List | AF12: dms_FeederName_1 | AG12: dms_FeederName_2 | AH12: dms_FeederName_3 | AI12: dms_FeederName_4 | AJ12: dms_FeederName_5 | AK12: dms_Public_Lighting_List | AL12: Name
B13: Amadeus | C13: APT Petroleum Pipelines Limited t/a Roma to Brisbane Pipeline | D13: 39009737393 | E13: NT | F13: Gas | G13: Transmission | H13: Weighted average price cap | I13: Financial | J13: June | K13: 5 | L13: 5 | M13: 5 | N13: x | O13: n/a | P13: Level 19, HSBC Building | Q13: 580 George Street | R13: SYDNEY | S13: NSW | T13: 2000 | U13: Level 19, HSBC Building | V13: 580 George Street | W13: SYDNEY | X13: NSW | Y13: 2000 | Z13: NO | AA13: NO | AB13: NO | AC13: NO | AD13: NO | AE13: CBD | AF13: Urban | AG13: Short rural | AH13: Long rural | AJ13: NO | AK13: =B13 -> Amadeus
B18: The Reg Year Ending (dms_RYE) must be set to the last year of the regulatory period. For forecast data is is usually (FRCP_y5) for actual it is a single year (CRY). For historical actual data the RYE will need to be set manually in the business details sheet by setting the dms_Multiyear_flag to 1 and putting the correct value in 'dms_Specified_FinalYear. See cells C67:C68
B19: dms_Model_List | C19: dms_Model_Name_Format1 | D19: dms_Worksheet_List | E19: dms_Model_Span_List
B20: ARR | C20: Annual Reporting | D20: =IF(dms_MultiYear_ResponseFlag="yes","NEW HISTORICAL ANNUAL REPORTING","ANNUAL REPORTING") -> ANNUAL REPORTING | E20: 1
B21: CA | C21: Category Analysis | D21: =IF(dms_MultiYear_ResponseFlag="yes","NEW HISTORICAL CATEGORY ANALYSIS","CATEGORY ANALYSIS") -> CATEGORY ANALYSIS | E21: 1
B22: CESS | C22: Capitlal Expenditure | D22: CAPITLAL EXPENDITURE SHARING SCHEMING | E22: 5
B23: CPI | C23: CPI | D23: CPI | E23: 5
B24: EB | C24: Economic Benchmarking | D24: =IF(dms_MultiYear_ResponseFlag="yes","NEW HISTORICAL ECONOMIC BENCHMARKING","ECONOMIC BENCHMARKING") -> ECONOMIC BENCHMARKING | E24: 1
B25: Pricing | C25: Pricing Proposal | D25: PRICING PROPOSAL | E25: 5
B26: PTRM | C26: Post Tax Revenue Model | D26: POST TAX REVENUE MODEL | E26: 5
B27: Reset | C27: Regulatory Reporting (Reset) | D27: REGULATORY REPORTING STATEMENT | E27: 5
B28: RFM | C28: Roll Forward Model | D28: ROLL FORWARD MODEL | E28: 5
B29: WACC | C29: Weighted Average Cost of Capital | D29: WEIGHTED AVERAGE COST OF CAPITAL | E29: 1
B33: Financial | C33: Calendar | E33: PREVIOUS | G33: CURRENT | I33: FORTHCOMING
B34: 1987-88 | C34: 1988 | D34: PRCP_y1 | E34: =INDEX(INDIRECT(dms_RPT),dms_PRCP_start_row) -> 2012-13 | F34: CRCP_y1 | G34: =INDEX(INDIRECT(dms_RPT),dms_CRCP_start_row) -> 2017-18 | H34: =FRCP_y1 -> 2022-23 | I34: =INDEX(INDIRECT(dms_RPT),dms_FRCP_start_row) -> 2022-23
B35: 1988-89 | C35: 1989 | D35: PRCP_y2 | E35: =INDEX(INDIRECT(dms_RPT),dms_PRCP_start_row+1) -> 2013-14 | F35: CRCP_y2 | G35: =INDEX(INDIRECT(dms_RPT),dms_CRCP_start_row+1) -> 2018-19 | H35: FRCP_y2 | I35: =INDEX(INDIRECT(dms_RPT),dms_FRCP_start_row+1) -> 2023-24
B36: 1989-90 | C36: 1990 | D36: PRCP_y3 | E36: =INDEX(INDIRECT(dms_RPT),dms_PRCP_start_row+2) -> 2014-15 | F36: CRCP_y3 | G36: =INDEX(INDIRECT(dms_RPT),dms_CRCP_start_row+2) -> 2019-20 | H36: FRCP_y3 | I36: =INDEX(INDIRECT(dms_RPT),dms_FRCP_start_row+2) -> 2024-25
B37: 1990-91 | C37: 1991 | D37: PRCP_y4 | E37: =INDEX(INDIRECT(dms_RPT),dms_PRCP_start_row+3) -> 2015-16 | F37: CRCP_y4 | G37: =INDEX(INDIRECT(dms_RPT),dms_CRCP_start_row+3) -> 2020-21 | H37: FRCP_y4 | I37: =INDEX(INDIRECT(dms_RPT),dms_FRCP_start_row+3) -> 2025-26
B38: 1991-92 | C38: 1992 | D38: PRCP_y5 | E38: =INDEX(INDIRECT(dms_RPT),dms_PRCP_start_row+4) -> 2016-17 | F38: CRCP_y5 | G38: =INDEX(INDIRECT(dms_RPT),dms_CRCP_start_row+4) -> 2021-22 | H38: FRCP_y5 | I38: =INDEX(INDIRECT(dms_RPT),dms_FRCP_start_row+4) -> 2026-27
B39: 1992-93 | C39: 1993 | D39: PRCP_y6 | E39: =INDEX(INDIRECT(dms_RPT),dms_PRCP_start_row+5) -> 2017-18 | F39: CRCP_y6 | G39: =INDEX(INDIRECT(dms_RPT),dms_CRCP_start_row+5) -> 2022-23 | H39: FRCP_y6 | I39: =INDEX(INDIRECT(dms_RPT),dms_FRCP_start_row+5) -> 2027-28
B40: 1993-94 | C40: 1994 | D40: PRCP_y7 | E40: =INDEX(INDIRECT(dms_RPT),dms_PRCP_start_row+6) -> 2018-19 | F40: CRCP_y7 | G40: =INDEX(INDIRECT(dms_RPT),dms_CRCP_start_row+6) -> 2023-24 | H40: FRCP_y7 | I40: =INDEX(INDIRECT(dms_RPT),dms_FRCP_start_row+6) -> 2028-29
B41: 1994-95 | C41: 1995 | D41: PRCP_y8 | E41: =INDEX(INDIRECT(dms_RPT),dms_PRCP_start_row+7) -> 2019-20 | F41: CRCP_y8 | G41: =INDEX(INDIRECT(dms_RPT),dms_CRCP_start_row+7) -> 2024-25 | H41: FRCP_y8 | I41: =INDEX(INDIRECT(dms_RPT),dms_FRCP_start_row+7) -> 2029-30
B42: 1995-96 | C42: 1996 | D42: PRCP_y9 | E42: =INDEX(INDIRECT(dms_RPT),dms_PRCP_start_row+8) -> 2020-21 | F42: CRCP_y9 | G42: =INDEX(INDIRECT(dms_RPT),dms_CRCP_start_row+8) -> 2025-26 | H42: FRCP_y9 | I42: =INDEX(INDIRECT(dms_RPT),dms_FRCP_start_row+8) -> 2030-31
B43: 1996-97 | C43: 1997 | D43: PRCP_y10 | E43: =INDEX(INDIRECT(dms_RPT),dms_PRCP_start_row+9) -> 2021-22 | F43: CRCP_y10 | G43: =INDEX(INDIRECT(dms_RPT),dms_CRCP_start_row+9) -> 2026-27 | H43: FRCP_y10 | I43: =INDEX(INDIRECT(dms_RPT),dms_FRCP_start_row+9) -> 2031-32
B44: 1997-98 | C44: 1998 | D44: PRCP_y11 | E44: =INDEX(INDIRECT(dms_RPT),dms_PRCP_start_row+10) -> 2022-23 | F44: CRCP_y11 | G44: =INDEX(INDIRECT(dms_RPT),dms_CRCP_start_row+10) -> 2027-28 | H44: FRCP_y11 | I44: =INDEX(INDIRECT(dms_RPT),dms_FRCP_start_row+10) -> 2032-33
B45: 1998-99 | C45: 1999 | D45: PRCP_y12 | E45: =INDEX(INDIRECT(dms_RPT),dms_PRCP_start_row+11) -> 2023-24 | F45: CRCP_y12 | G45: =INDEX(INDIRECT(dms_RPT),dms_CRCP_start_row+11) -> 2028-29 | H45: FRCP_y12 | I45: =INDEX(INDIRECT(dms_RPT),dms_FRCP_start_row+11) -> 2033-34
B46: 1999-00 | C46: 2000 | D46: PRCP_y13 | E46: =INDEX(INDIRECT(dms_RPT),dms_PRCP_start_row+12) -> 2024-25 | F46: CRCP_y13 | G46: =INDEX(INDIRECT(dms_RPT),dms_CRCP_start_row+12) -> 2029-30 | H46: FRCP_y13 | I46: =INDEX(INDIRECT(dms_RPT),dms_FRCP_start_row+12) -> 2034-35
B47: 2000-01 | C47: 2001 | D47: PRCP_y14 | E47: =INDEX(INDIRECT(dms_RPT),dms_PRCP_start_row+13) -> 2025-26 | F47: CRCP_y14 | G47: =INDEX(INDIRECT(dms_RPT),dms_CRCP_start_row+13) -> 2030-31 | H47: FRCP_y14 | I47: =INDEX(INDIRECT(dms_RPT),dms_FRCP_start_row+13) -> 2035-36
B48: 2001-02 | C48: 2002 | D48: PRCP_y15 | E48: =INDEX(INDIRECT(dms_RPT),dms_PRCP_start_row+14) -> 2026-27 | F48: CRCP_y15 | G48: =INDEX(INDIRECT(dms_RPT),dms_CRCP_start_row+14) -> 2031-32 | H48: FRCP_y15 | I48: =INDEX(INDIRECT(dms_RPT),dms_FRCP_start_row+14) -> 2036-37
B49: 2002-03 | C49: 2003 | D49: PRCP_y16 | E49: =INDEX(INDIRECT(dms_RPT),dms_PRCP_start_row+15) -> 2027-28 | F49: CRCP_y16 | G49: =INDEX(INDIRECT(dms_RPT),dms_CRCP_start_row+15) -> 2032-33 | H49: FRCP_y16 | I49: =INDEX(INDIRECT(dms_RPT),dms_FRCP_start_row+15) -> 
B50: 2003-04 | C50: 2004
B51: 2004-05 | C51: 2005
B52: 2005-06 | C52: 2006 | E52: CRY - FRY
B53: 2006-07 | C53: 2007 | D53: dms_y1 | E53: =IFERROR(INDEX(INDIRECT(dms_RPT),dms_CRY_start_row),0) -> 2020-21
B54: 2007-08 | C54: 2008 | D54: dms_y2 | E54: =IFERROR(INDEX(INDIRECT(dms_RPT),dms_CRY_start_row+1),0) -> 2021-22
B55: 2008-09 | C55: 2009 | D55: dms_y3 | E55: =IFERROR(INDEX(INDIRECT(dms_RPT),dms_CRY_start_row+2),0) -> 2022-23
B56: 2009-10 | C56: 2010 | D56: dms_y4 | E56: =IFERROR(INDEX(INDIRECT(dms_RPT),dms_CRY_start_row+3),0) -> 2023-24
B57: 2010-11 | C57: 2011 | D57: dms_y5 | E57: =IFERROR(INDEX(INDIRECT(dms_RPT),dms_CRY_start_row+4),0) -> 2024-25
B58: 2011-12 | C58: 2012 | D58: dms_y6 | E58: =IFERROR(INDEX(INDIRECT(dms_RPT),dms_CRY_start_row+5),0) -> 2025-26
B59: 2012-13 | C59: 2013 | D59: dms_y7 | E59: =IFERROR(INDEX(INDIRECT(dms_RPT),dms_CRY_start_row+6),0) -> 2026-27
B60: 2013-14 | C60: 2014 | D60: dms_y8 | E60: =IFERROR(INDEX(INDIRECT(dms_RPT),dms_CRY_start_row+7),0) -> 2027-28
B61: 2014-15 | C61: 2015 | D61: dms_y9 | E61: =IFERROR(INDEX(INDIRECT(dms_RPT),dms_CRY_start_row+8),0) -> 2028-29
B62: 2015-16 | C62: 2016 | D62: dms_y10 | E62: =IFERROR(INDEX(INDIRECT(dms_RPT),dms_CRY_start_row+9),0) -> 2029-30
B63: 2016-17 | C63: 2017 | D63: dms_y11 | E63: =IFERROR(INDEX(INDIRECT(dms_RPT),dms_CRY_start_row+10),0) -> 2030-31
B64: 2017-18 | C64: 2018 | D64: dms_y12 | E64: =IFERROR(INDEX(INDIRECT(dms_RPT),dms_CRY_start_row+11),0) -> 2031-32
B65: 2018-19 | C65: 2019 | D65: dms_y13 | E65: =IFERROR(INDEX(INDIRECT(dms_RPT),dms_CRY_start_row+12),0) -> 2032-33
B66: 2019-20 | C66: 2020 | D66: dms_y14 | E66: =IFERROR(INDEX(INDIRECT(dms_RPT),dms_CRY_start_row+13),0) -> 2033-34
B67: 2020-21 | C67: 2021 | D67: dms_y15 | E67: =IFERROR(INDEX(INDIRECT(dms_RPT),dms_CRY_start_row+14),0) -> 2034-35
B68: 2021-22 | C68: 2022 | D68: dms_y16 | E68: =IFERROR(INDEX(INDIRECT(dms_RPT),dms_CRY_start_row+15),0) -> 2035-36
B69: 2022-23 | C69: 2023
B70: 2023-24 | C70: 2024
B71: 2024-25 | C71: 2025
B72: 2025-26 | C72: 2026
B73: 2026-27 | C73: 2027
B74: 2027-28 | C74: 2028
B75: 2028-29 | C75: 2029
B76: 2029-30 | C76: 2030
B77: 2030-31 | C77: 2031
B78: 2031-32 | C78: 2032
B79: 2032-33 | C79: 2033
B80: 2033-34 | C80: 2034
B81: 2034-35 | C81: 2035
B82: 2035-36 | C82: 2036
B83: 2036-37 | C83: 2037

Sheet AER ETL (hidden)
B1: AER ETL INFORMATION
B3: USES NAMED RANGES FLAG | C3: yes | D3: dms_Defined_Names_Used
B5: IF THIS IS AN ABC RIN - make sure the the named range CRY is applied and the named range dms_dollar_nom_UOM is applied
B6: IF THIS IS A RESET RIN - make sure the named ranges CRY and dms_dollar_nom_UOM are NOT present in the workbook
B7: FOR ABC RINS THAT SPAN MULTIPLE YEARS - make sure MultiYear Flag is set and final year entered as required
B9: Full trading name | C9: =INDEX(dms_TradingNameFull_List,MATCH(dms_TradingName,dms_TradingName_List)) -> APT Petroleum Pipelines Limited t/a Roma to Brisbane Pipeline | E9: dms_TradingNameFull
B10: Trading name | C10: =dms_TradingName -> Roma to Brisbane Pipeline
A11: Selected here | B11: Model / RIN | C11: Reset | D11: dms_Model
A12: Read from Business & other details | B12: Source | C12: =dms_Selected_Source -> Regulatory proposal | D12: dms_Source
B13: Data quality | C13: =dms_Selected_Quality -> Consolidated | D13: dms_DQ_1
B14: Data status | C14: =dms_Selected_Status -> Public | D14: dms_DQ_2
B15: Amendment reason | C15: =dms_Amendment_Text -> . | F15: dms_AmendmentReason
B16: Submission date | C16: =dms_Typed_Submission_Date -> dd/mm/yy | D16: dms_SubmissionDate
A18: Redundant | B18: EBSS - First application of scheme in forthcoming period? | C18: No
A19: Pre-populated from lookup table | B19: Data ingestion data quality | C19: =dms_Selected_Quality -> Consolidated | D19: dms_DataQuality | E19: =IF(dms_DQ_2="Confidential","Consolidated","Public")
B20: Sector | C20: =INDEX(dms_Sector_List,MATCH(dms_TradingName,dms_TradingName_List)) -> Gas | D20: dms_Sector | E20: =INDEX(dms_Sector_List,MATCH(dms_TradingName,dms_TradingName_List))
B21: Segment | C21: =INDEX(dms_Segment_List,MATCH(dms_TradingName,dms_TradingName_List)) -> Transmission | D21: dms_Segment | E21: =INDEX(dms_Segment_List,MATCH(dms_TradingName,dms_TradingName_List))
B22: Regulatory Year Ending | C22: =dms_RYE_result -> 2027 | D22: dms_RYE | E22: =IF(dms_MultiYear_Flag=1,LEFT(dms_Specified_FinalYear,2)&RIGHT(dms_Specified_FinalYear,2),INDEX(dms_RYE_Formula_Result,MATCH(dms_Model,dms_Model_List)))
B23: Reporting Period Type | C23: =INDEX(dms_RPT_List,MATCH(dms_TradingName,dms_TradingName_List)) -> Financial | D23: dms_RPT | E23: =INDEX(dms_RPT_List,MATCH(dms_TradingName,dms_TradingName_List))
B24: EB/CA Unit of Measure for Monetary Values | C24: $0s | D24: dms_dollar_nom_UOM | E24: If the cover sheet is attached to an ABC RIN apply the NAMED RANGE to the cell
B25: Security Classification | C25: Public | D25: dms_Classification | E25: Always Public
B26: Jurisdiction | C26: =INDEX(dms_JurisdictionList,MATCH(dms_TradingName,dms_TradingName_List)) -> NT | D26: dms_Jurisdiction | E26: =INDEX(dms_JurisdictionList,MATCH(dms_TradingName,dms_TradingName_List))
A27: Relevant for PTRM, RFMs and Reset RINS | B27: $ REAL REFERENCES
B28: Does the named range CRY exist in this file? | C28: =IFERROR(CRY,"NO") -> 2020-21
B29: CRY-1 (last full calendar year before CRY) | C29: =IFERROR(IF(dms_RPT="calendar",CRY-1,LEFT(CRY,4)),"CRY not present") -> 2020 | D29: dms_Cal_Year_B4_CRY | E29: '=IF(dms_RPT="financial",VALUE(LEFT(dms_SingleYear_FinalYear_Result,4)),VALUE(LEFT(dms_SingleYear_FinalYear_Result,4)-1))
B30: Dollar $ real month | C30: =INDEX(dms_RPTMonth_List,MATCH(dms_TradingName,dms_TradingName_List)) -> June | D30: dms_RPTMonth | E30: =INDEX(dms_RPTMonth_List,MATCH(dms_TradingName,dms_TradingName_List))
B31: Dollar $ real (the last month before the FRCP_y1) | C31: =IF(SUM(dms_SingleYear_Model)>0,CONCATENATE(dms_RPTMonth)&" "&VALUE((LEFT(CRY,2))&RIGHT(CRY,2)),CONCATENATE(dms_RPTMonth)&" "&VALUE((LEFT(CRCP_y5,2)&RIGHT(CRCP_y5,2)))) -> June 2022 | D31: dms_DollarReal | E31: =IF(SUM(dms_SingleYear_Model)>0,CONCATENATE(dms_RPTMonth)&" "&VALUE((LEFT(CRY,2))&RIGHT(CRY,2)),CONCATENATE(dms_RPTMonth)&" "&VALUE((LEFT(dms_RYE,2)&RIGHT(dms_RYE,2))))
B32: Dollar $ real previous year (PRCP_y5) | C32: =IF(dms_SingleYearModel="yes",CONCATENATE(dms_RPTMonth)&" "&VALUE((LEFT(CRY,2))&RIGHT(CRY,2)),CONCATENATE(dms_RPTMonth)&" "&dms_Previous_DollarReal_year) -> June 2017 | D32: dms_DollarReal_Prev | E32: =IF(SUM(dms_SingleYear_Model)>0,CONCATENATE(dms_RPTMonth)&" "&VALUE(((LEFT(CRY,2))&RIGHT(CRY,2))-1),CONCATENATE(dms_RPTMonth)&" "&VALUE(((LEFT(dms_CRCP_FirstYear_Result,2)&RIGHT(dms_CRCP_FirstYear_Result,2))))-1)
B33: PTRM/ RFMs
B34: Form of control | C34: =INDEX(dms_FormControl_List,MATCH(dms_TradingName,dms_TradingName_List)) -> Weighted average price cap | D34: dms_FormControl | E34: =INDEX(dms_FormControl_List,MATCH(dms_TradingName,dms_TradingName_List))
A35: All potential values for Regulatory Years or RYEs as calculated | B35: This block works out the various RYE's for ALL RIN types and MODELS
B36: dms_start_year | C36: =FRCP_y1 -> 2022-23 | D36: =FRCP_y1 | E36: FRCP_y1 from cover sheet
B37: dms_CRY_start_year | C37: =IFERROR(CRY,CRCP_y4) -> 2020-21 | D37: =IFERROR(CRY,CRCP_y4)
B38: dms_CRY_start_row | C38: =IFERROR(MATCH(dms_CRY_start_year,INDIRECT(dms_RPT),0),0) -> 34 | D38: =IFERROR(MATCH(dms_CRY_start_year,INDIRECT(dms_RPT),0),0)
B39: dms_FRCP_start_row | C39: =MATCH(dms_start_year,INDIRECT(dms_RPT),0) -> 36 | D39: =MATCH(dms_start_year,INDIRECT(dms_RPT),0) | E39: Uses FRCP_y1 as a start reference
B40: dms_CRCP_start_row | C40: =dms_FRCP_start_row-dms_CRCPlength_Num -> 31 | D40: =dms_FRCP_start_row-dms_CRCPlength_Num | E40: Uses the value in dms_CRCPlength_Num
B41: dms_PRCP_start_row | C41: =dms_FRCP_start_row-dms_CRCPlength_Num-dms_PRCPlength_Num -> 26 | D41: =dms_FRCP_start_row-dms_CRCPlength_Num-dms_PRCPlength_Num | E41: Uses the value in dms_CRCPlength_Num and dms_PRCPlength_Num
B42: dms_RYE_start_row | C42: =dms_FRCP_start_row+(dms_FRCPlength_Num-1) -> 40 | D42: =dms_FRCP_start_row+(dms_FRCPlength_Num-1) | E42: Uses the value in dms_FRCPlength_Num-1
B43: FRCP_start_year | C43: =INDEX(INDIRECT(dms_RPT),dms_FRCP_start_row) -> 2022-23 | D43: =INDEX(INDIRECT(dms_RPT),dms_FRCP_start_row) | E43: Converts the FRCP start row to display the year
B44: CRCP_start_year | C44: =INDEX(INDIRECT(dms_RPT),dms_CRCP_start_row) -> 2017-18 | D44: =INDEX(INDIRECT(dms_RPT),dms_CRCP_start_row) | E44: Converts the CRCP start row to display the year
B45: PRCP_start_year | C45: =INDEX(INDIRECT(dms_RPT),dms_PRCP_start_row) -> 2012-13 | D45: =INDEX(INDIRECT(dms_RPT),dms_PRCP_start_row) | E45: Converts the PRCP start row to display the year
B46: FRCP_final_year | C46: =INDEX(INDIRECT(dms_RPT),dms_FRCP_start_row+dms_FRCPlength_Num-1) -> 2026-27 | D46: =INDEX(INDIRECT(dms_RPT),dms_FRCP_start_row+dms_FRCPlength_Num-1) | E46: Finds the FRCP final year
B47: CRCP_final_year | C47: =INDEX(INDIRECT(dms_RPT),dms_CRCP_start_row+dms_CRCPlength_Num-1) -> 2021-22 | D47: =INDEX(INDIRECT(dms_RPT),dms_CRCP_start_row+dms_CRCPlength_Num-1) | E47: Finds the CRCP final year
B48: PRCP_final_year | C48: =INDEX(INDIRECT(dms_RPT),dms_PRCP_start_row+dms_FRCPlength_Num-1) -> 2016-17 | D48: =INDEX(INDIRECT(dms_RPT),dms_PRCP_start_row+dms_FRCPlength_Num-1) | E48: Finds the PRCP final year
B49: dms_Reset_final_year | C49: =INDEX(INDIRECT(dms_RPT),dms_RYE_start_row) -> 2026-27 | D49: =INDEX(INDIRECT(dms_RPT),dms_RYE_start_row) | E49: For Resets and PTRM/RFMs (same as FRCP_final_year)
B50: dms_SpecifiedYear_final_year | C50: =FRY -> 2020-21 | D50: =FRY | E50: FRY from cover sheet
B51: dms_DollarReal_year | C51: =LEFT(CRCP_final_year,4) -> 2021 | D51: =LEFT(CRCP_final_year,4) | E51: Uses the value in CRCP_final_year
B52: dms_Previous_DollarReal_year | C52: =LEFT(PRCP_final_year,2)&RIGHT(PRCP_final_year,2) -> 2017 | D52: =LEFT(PRCP_final_year,2)&RIGHT(PRCP_final_year,2) | E52: Uses the value in PRCP_final_year
B53: dms_CRY_RYE | C53: =IFERROR(LEFT(CRY,2)&RIGHT(CRY,2),0) -> 2021 | D53: =IFERROR(LEFT(CRY,2)&RIGHT(CRY,2),0) | E53: For ABC single year RINS
B54: dms_Reset_RYE | C54: =IF(dms_Model_Span>1,IF(dms_Model="RFM",(LEFT(dms_DollarReal_year,2)&RIGHT(dms_DollarReal_year,2)),(LEFT(dms_Reset_final_year,2)&RIGHT(dms_Reset_final_year,2))),0) -> 2027 | D54: =IF(dms_Model_Span>1,IF(dms_Model="RFM",(LEFT(dms_DollarReal_year,2)&RIGHT(dms_DollarReal_year,2)),(LEFT(dms_Reset_final_year,2)&RIGHT(dms_Reset_final_year,2))),0) | E54: If model span > 1 then uses dms_Reset_RYE otherwise it's a multi year ABC and uses dms_Specified_RYE
B55: dms_Specified_RYE | C55: =IF(dms_MultiYear_ResponseFlag="Yes",(LEFT(dms_Specified_FinalYear,2)&RIGHT(dms_Specified_FinalYear,2)),0) -> 0 | D55: =IF(dms_MultiYear_ResponseFlag="Yes",(LEFT(dms_Specified_FinalYear,2)&RIGHT(dms_Specified_FinalYear,2)),0) | E55: If multi year ABC - uses dms_Specified_FinalYear
B56: dms_Model_Span | C56: =INDEX(dms_Model_Span_List,MATCH(dms_Model,dms_Model_List)) -> 5 | D56: =INDEX(dms_Model_Span_List,MATCH(dms_Model,dms_Model_List)) | E56: A result of 5 is used to signify that it is more than 1 year span
B57: dms_RYE_result | C57: =IF(dms_MultiYear_ResponseFlag="yes",dms_Specified_RYE,(IF(dms_Model_Span>1,dms_Reset_RYE,dms_CRY_RYE))) -> 2027 | D57: =IF(dms_MultiYear_ResponseFlag="yes",dms_Specified_RYE,(IF(dms_Model_Span>1,dms_Reset_RYE,dms_CRY_RYE))) | E57: Nested IF - feeds into dms_RYE
B58: dms_Reset_Span | C58: =IF(dms_Reset_RYE>0,CONCATENATE(FRCP_y1," to ",FRCP_final_year),0) -> 2022-23 to 2026-27 | D58: =IF(dms_Reset_RYE>0,CONCATENATE(FRCP_y1," to ",FRCP_final_year),0) | E58: Reset span of years as text
B59: dms_SpecifiedYear_Span | C59: =IF(dms_Specified_RYE>0,CONCATENATE(CRY," to ",dms_Specified_FinalYear),0) -> 0 | D59: =IF(dms_Specified_RYE>0,CONCATENATE(CRY," to ",dms_Specified_FinalYear),0) | E59: Multi year ABC span of years as text
B60: dms_Header_Span | C60: =IF(dms_MultiYear_Flag=1,CONCATENATE("Data Span ",dms_SpecifiedYear_Span),IF(dms_Model_Span>1,CONCATENATE("Data Span ",dms_y1&" - "&FRCP_final_year))) -> Data Span 2020-21 - 2026-27 | D60: =IF(dms_MultiYear_Flag=1,dms_SpecifiedYear_Span,IF(dms_Model_Span>1,dms_Reset_Span,CRY)) | E60: NESTED IF - for Sheet Headers
B61: ABC RINS THAT SPAN MULTIPLE YEARS
B62: This is a multi year ABC RIN? | C62: No
C63: =IF(dms_MultiYear_ResponseFlag="No",0,1) -> 0 | D63: dms_MultiYear_Flag | E63: This is set from the answer provided above
C64: =IF(dms_MultiYear_Flag=1,FRY,"not a Multiple year submission") -> not a Multiple year submission | D64: dms_Specified_FinalYear | E64: The result here is returned to dms_CRCP_FinalYear_Result if response to Q in C73 is "yes" and dms_MultiYear_Flag is set to 1
B65: Start year for 5.2 in Multi year ABC RINS | C65: =IFERROR(IF(dms_MultiYear_Flag=1,FRY,CRY),"not an ABC") -> 2020-21 | D65: dms_0502_Inst_Year | E65: =IF(dms_MultiYear_Flag=1,FRY,CRY) | G65: For single year RINS this is CRY - multi year RINS need to start a the end of the span of years (ie. FRY)
B66: WHAT IS THE RYE?
B67: Reg Period Lengths
B68: PRCP length in years | C68: =INDEX(dms_PRCPlength_List,MATCH(dms_TradingName,dms_TradingName_List)) -> 5 | D68: dms_PRCPlength_Num | E68: =INDEX(dms_PRCPlength_List,MATCH(dms_TradingName,dms_TradingName_List))
B69: CRCP length in years | C69: =INDEX(dms_CRCPlength_List,MATCH(dms_TradingName,dms_TradingName_List)) -> 5 | D69: dms_CRCPlength_Num | E69: =INDEX(dms_CRCPlength_List,MATCH(dms_TradingName,dms_TradingName_List))
B70: FRCP length in years | C70: =INDEX(dms_FRCPlength_List,MATCH(dms_TradingName,dms_TradingName_List)) -> 5 | D70: dms_FRCPlength_Num | E70: =INDEX(dms_FRCPlength_List,MATCH(dms_TradingName,dms_TradingName_List))
B71: Single year RIN?
B72: Single Year ABC RIN ? | C72: =IF(dms_Model="EB",1,0) -> 0 | D72: dms_EB
C73: =IF(dms_Model="CA",1,0) -> 0 | D73: dms_CA | E73: =dms_SingleYear_Model
C74: =IF(dms_Model="ARR",1,0) -> 0 | D74: dms_ARR
B75: Is this a single Year ABC RIN? | C75: =IF(SUM(dms_SingleYear_Model)=1,"yes","no") -> no | D75: dms_SingleYearModel | E75: =IF(SUM(dms_SingleYear_Model)=1,"yes","no")
B76: Single Year Final Year Result | C76: =IF(AND(dms_SingleYearModel="yes",dms_MultiYear_Flag=0),CRY,0) -> 0 | D76: dms_SingleYear_FinalYear_Result | E76: =IFERROR(IF(SUM(dms_SingleYear_Model)<>0,(INDIRECT(dms_SingleYear_FinalYear_Ref)),"not a single year RIN"),"CRY not present")
B77: Multi year RIN?
B79: Multi Year Reset/Model? | C79: =IF(dms_Model_Span>1,"yes","no") -> yes
B80: Final year result for Reset/Model | C80: =IF(dms_Model_Span>1,dms_Reset_final_year,0) -> 2026-27 | D80: dms_MultiYear_FinalYear_Result | E80: dms_CRCP_FinalYear_Result
B82: Multi Year ABC RIN? | C82: =IF(dms_MultiYear_Flag=1,"yes","no") -> no | D82: dms_MultiYear_ABC_RIN
B83: Final year result for ABC multi year | C83: =IF(dms_MultiYear_Flag=1,C50,0) -> 0
B85: EB RINS
B86: Calendar Year for table 3.6 data | C86: =IFERROR(IF(dms_Segment="Transmission",dms_Cal_Year_B4_CRY,CRY),"CRY not present") -> 2020 | D86: dms_0306_Year | E86: =IF(dms_Segment="Transmission",dms_Cal_Year_B4_CRY,CRY)
B87: CA RINS
B88: Find how many rows in tables 6.3 sustained interruptions? | E88: dms_060301_MaxRows only returns a valid value when cover sheet is attached to a CA file
C89: =IF(dms_Model<>"CA","not a CA","Is a CA") -> not a CA | E89: =IF(dms_Model<>"CA","not a CA","Is a CA")
B90: dms_060301_Avg_Duration_Sustained_Int_Values present? | C90: =IFERROR(IF(INDEX(dms_060301_Avg_Duration_Sustained_Int_Values,1,1)<>"","yes","no"),"no") -> no | D90: dms_060301_checkvalue | E90: =IFERROR(IF(INDEX(dms_060301_Avg_Duration_Sustained_Int_Values,1,1)<>"","yes","no"),"no")
C91: =IF(AND(dms_Model="CA",(dms_060301_checkvalue="no")),"error - NR not present","no errors") -> no errors | E91: =IF(AND(dms_Model="CA",(dms_060301_checkvalue="no")),"error - NR not present","no errors")
B92: Table 6.3.1 - last row reference | C92: =IFERROR(IF(dms_Model="CA",LOOKUP(2,1/(dms_060301_Avg_Duration_Sustained_Int_Values<>""),(ROW(dms_060301_Avg_Duration_Sustained_Int_Values))),"not a CA"),"6.3 not present") -> not a CA | D92: dms_060301_LastRow | E92: =IFERROR(IF(dms_Model="CA",LOOKUP(2,1/(dms_060301_Avg_Duration_Sustained_Int_Values<>""),(ROW(dms_060301_Avg_Duration_Sustained_Int_Values))),"not a CA"),"6.3 not present")
B93: Table 6.3.1 - max number rows | C93: =IFERROR(IF(dms_Model="CA",(dms_060301_LastRow-15),"not a CA"),"error") -> not a CA | D93: dms_060301_MaxRows | E93: =IFERROR(IF(dms_Model="CA",(dms_060301_LastRow-15),"not a CA"),"error")
B94: Table 6.6.3 - Public lighting repair - no. business days | C94: =INDEX(dms_663_List,MATCH(dms_TradingName,dms_TradingName_List)) -> x | D94: dms_663 | E94: =INDEX(dms_663_List,MATCH(dms_TradingName,dms_TradingName_List))
B95: ARR or RESET RINS
B96: How many rows in tables 6.1 or 6.7? (leap year?) | C96: insert dms_LeapYear NR if required | E96: 'dms_LeapYear is used to determine dms_060701_Max_Rows BUT it is only found on worksheet 6.1 or 6.7 and the date value in the cell is used to determine whether it is a leap year
B97: Is dms_LeapYear named range present? | C97: =IFERROR(IF(dms_LeapYear,"yes"),"no") -> no
B98: Table 6.7.1 - includes a leap year? | C98: =IFERROR(IF(MONTH(DATE(YEAR(dms_LeapYear),2,29))=2,"is a leap year","not a leap year"), "dms_LeapYear not present") -> dms_LeapYear not present | D98: dms_LeapYear_Result | E98: =IFERROR(IF(MONTH(DATE(YEAR(dms_LeapYear),2,29))=2,"is a leap year","not a leap year"),"dms_LeapYear not present")
B99: MaxRows if Reset and leap year | C99: =IF(dms_LeapYear_Result="is a leap year",1827,1826) -> 1826 | D99: dms_060701_Reset_MaxRows | E99: =IF(dms_LeapYear_Result="is a leap year",1827,1826) | H99: number of days present in Reset RIN table
B100: MaxRows if ARR and leap year | C100: =IF(dms_LeapYear_Result="is a leap year",366,365) -> 365 | D100: dms_060701_ARR_MaxRows | E100: =IF(dms_LeapYear_Result="is a leap year",366,365) | H100: number of days present in ARR RIN table
B101: Table 6.7.1 - Max Rows (leap year/ non leap year) | C101: =IF(dms_Model="ARR",dms_060701_ARR_MaxRows,IF(dms_Model="Reset",dms_060701_Reset_MaxRows,"not a relevant RIN type")) -> 1826 | D101: dms_060701_MaxRows | E101: =IF(dms_Model="ARR",dms_060701_ARR_MaxRows,IF(dms_Model="Reset",dms_060701_Reset_MaxRows,"not a relevant RIN type"))
B102: How many columns in 6.7? (4 or 5 feeder categories) | C102: =IF(dms_FifthFeeder_flag_NSP="NO","This NSP has only 4 feeder categories","This NSP has 5 feeder categories") -> This NSP has only 4 feeder categories
B103: Table 6.7.1 - Last column (# of feeder categories > 4) | C103: =IF(dms_FifthFeeder_flag_NSP="NO",10,12) -> 10 | D103: dms_060701_MaxCols | E103: =IF(dms_FifthFeeder_flag_NSP="NO",8,10)
B104: Table 6.7.1 - Number of offset rows | C104: =IF(dms_Model="ARR",15,9) -> 9 | D104: dms_060701_OffsetRows | E104: =IF(dms_Model="ARR",15,9)
B105: Start date for telephone answering in 6.1 or 6.7? | E105: Using 060101 as naming standard not 060701 for start dates
B106: Table 6.1.1 and 6.7.1 - Start Date as Text | C106: =IF(dms_SingleYearModel="yes",(CONCATENATE(IF(LEN(CRY)=4,"1-Jan-","1-Jul-"),LEFT(CRY,4))),(CONCATENATE(IF(LEN(PRCP_y4)=4,"1-Jan-","1-Jul-"),LEFT(PRCP_y4,4)))) -> 1-Jul-2015 | D106: dms_060101_StartDateTxt | E106: =IF(SUM(dms_SingleYear_Model)>1,(CONCATENATE(IF(LEN(CRY)=4,"1-Jan-","1-Jul-"),LEFT(CRY,4))),(CONCATENATE(IF(LEN(CRCP_y4)=4,"1-Jan-","1-Jul-"),LEFT(CRCP_y4,4))))
B107: Table 6.1.1 and 6.7.1 - Start Date as Date Value | C107: =DATEVALUE(dms_060701_StartDateTxt) -> 42186 | D107: dms_060101_StartDateVal | E107: =DATEVALUE(dms_060701_StartDateTxt)
B108: ARRs
B109: How many rows in table 6.8? | C109: insert dms_060801_StartCell NR if required | E109: dms_060801_StartCell is only found on worksheet 6.8 and is used to determine the starting date for the date range
B110: Is dms_060801_StartCell named range present? | C110: yes | E110: =IFERROR(IF((ROW(dms_060801_StartCell)-1)=1,"yes","yes"),"no")
B111: Table 6.8 - Number of offset rows | C111: 12 | D111: dms_0608_OffsetRows | E111: =IFERROR(IF(dms_Model="ARR",(ROW(dms_060801_StartCell)-1),"not an ARR"),"6.8 error")
B112: Table 6.8 - Last row | C112: 0 | D112: dms_0608_LastRow | E112: =IFERROR(IF(dms_060801_StartCell<>"",IF(dms_Model="ARR",(LOOKUP(2,1/(dms_060801_01_Values<>""),(ROW(dms_060801_01_Values)))),"not an ARR"),0),"0")
B113: Table 6.8 - MaxRows | C113: =IFERROR(IF(dms_Model="ARR",(MAX(0,dms_0608_LastRow-dms_0608_OffsetRows)),"not an ARR"),"0") -> not an ARR | D113: dms_060801_MaxRows | E113: =IFERROR(IF(dms_Model="ARR",(MAX(0,dms_0608_LastRow-dms_0608_OffsetRows)),"not an ARR"),"0")
B114: TNSP RESET RINS
B115: Table 7.9.4 only appears in TNSPs Reset RIN
B116: Table 7.9.4 - first year | C116: =LEFT(PRCP_y3,4) -> 2014 | D116: dms_070904_Start_Year | E116: =LEFT(PRCP_y3,4)
B118: MISC
B119: Distribution Determination Reference | C119: =INDEX(dms_DeterminationRef_List,MATCH(dms_TradingName,dms_TradingName_List)) -> n/a | D119: dms_DeterminationRef
B120: Public lighting NSP? | C120: =INDEX(dms_Public_Lighting_List,MATCH(dms_TradingName,dms_TradingName_List)) -> Amadeus | D120: dms_Public_Lighting | E120: =INDEX(dms_Public_Lighting_List,MATCH(dms_TradingName,dms_TradingName_List))
B121: CBD Feeder for this business | C121: =INDEX(dms_CBD_flag,MATCH(dms_TradingName,dms_TradingName_List)) -> NO | D121: dms_CBD_flag_NSP
B122: Urban Feeder for this business | C122: =INDEX(dms_Urban_flag,MATCH(dms_TradingName,dms_TradingName_List)) -> NO | D122: dms_Urban_flag_NSP
B123: Short rural Feeder for this business | C123: =INDEX(dms_ShortRural_flag,MATCH(dms_TradingName,dms_TradingName_List)) -> NO | D123: dms_ShortRural_flag_NSP
B124: Long rural Feeder for this business | C124: =INDEX(dms_LongRural_flag,MATCH(dms_TradingName,dms_TradingName_List)) -> NO | D124: dms_LongRural_flag_NSP
B125: Fifth Feeder Category (eg. TasNetworks (D)) | C125: =INDEX(dms_FeederType_5_flag,MATCH(dms_TradingName,dms_TradingName_List)) -> NO | D125: dms_FifthFeeder_flag_NSP | E125: =INDEX(dms_FeederType_5_flag,MATCH(dms_TradingName,dms_TradingName_List))
B127: DISCARD FILES
B128: discard this record? | C128: NO | D128: dms_DISCARD | E128: If record is to be discarded from DB set this flag to YES
B130: SUBSET FILES
B131: Is this Submission File a Subset File | C131: NO | D131: dms_Partial
B134: REGULATORY YEARS FOR MULTI RYE SUBMISSIONS
B135: Multiple RYE flag | C135: NO | D135: dms_Multi_RYE_flag
C136: Manually specify RYE | D136: Named ranges to apply
C137: 2013 | D137: dms_RYE_01
C138: 2014 | D138: dms_RYE_02
C139: 2015 | D139: dms_RYE_03
C140: 2016 | D140: dms_RYE_04
C141: 2017 | D141: dms_RYE_05
C142: 2018 | D142: dms_RYE_06
C143: 2019 | D143: dms_RYE_07
C144: 2020 | D144: dms_RYE_08
C145: 2021 | D145: dms_RYE_09
